[Event "44th Chess Olympiad Open 2022"]
[Site "Chennai"]
[Date "2022.08.05"]
[Round "7.63"]
[White "Rongwane, Gomolemo"]
[Black "Vasco Mateus Felizardo Viageir"]
[Result "1-0"]
[ECO "E14"]
[WhiteElo "2033"]
[BlackElo "1852"]
[Annotator "TA"]
[PlyCount "101"]
[EventDate "2022.07.29"]
[EventType "team-tourn"]
[EventCountry "IND"]
[SourceTitle "playchess.com"]
[Source "ChessBase"]
[SourceQuality "1"]
[WhiteTeam "Botswana"]
[BlackTeam "Mozambique"]
[WhiteTeamCountry "BOT"]
[BlackTeamCountry "MOZ"]
[TimeControl "40/5400+30:1800+30"]

{[%evp 20,101,16,3,9,-5,0,-2,0,-14,0,-18,-4,-13,-13,-18,-20,-13,0,-18,0,-17,-8,-32,-12,-41,-37,-54,-36,-56,0,0,50,48,65,65,139,165,357,174,354,309,338,334,593,560,979,961,1484,1459,1393,1157,2203,1384,5393,1673,1680,1548,29950,29958,6123,5173,29963,29967,29965,29968,29964,29966,29977,29978,29980,29981,29980,29981,29984,29985,29985,29985,29988,29989,29989,29989,29989,29989]} 1. d4 {[%emt 0:00:02]} Nf6 {[%emt 0:00:14]} 2. Nf3 {[%emt 0:00:11]} e6 {[%emt 0:00:37]} 3. e3 {[%emt 0:01:28]} b6 {[%emt 0:00:47]} 4. Bd3 {[%emt 0:00:06]} Bb7 {[%emt 0:01:03]} 5. O-O {[%emt 0:00:11]} Be7 {[%emt 0:01:55]} 6. Nbd2 {[%emt 0:00:12]} c5 {[%emt 0:02:39]} 7. b3 {[%emt 0:00:21]} cxd4 {[%emt 0:01:40]} 8. exd4 {[%emt 0:00:07]} O-O {[%emt 0:00:08]} 9. Bb2 {[%emt 0:00:10]} d6 {[%emt 0:00:13]} 10. Re1 {[%emt 0:01:05]} Nbd7 {[%emt 0:00:45]} 11. c4 {[%emt 0:01:20]} Re8 {[%emt 0:00:52] E14: Queen's Indian: Classical Variation (4 e3).} 12. Qc2 {[%emt 0:01:56]} Rc8 {[%emt 0:02:19]} 13. Rad1 {[%emt 0:02:03] [#]} Qc7 $146 {[%emt 0:01:49] The position is equal.} ({Predecessor:} 13... Nf8 14. Qb1 N6d7 15. a3 Ng6 16. b4 Ndf8 17. Bf1 Nh4 18. Nxh4 Bxh4 19. d5 e5 {0-1 (45) Almeida Quintana,O (2437)-Kallio,H (2474) Santa Clara 2003}) 14. Qb1 {[%emt 0:04:55]} Bf8 {[%emt 0:02:15]} 15. Re3 {[%emt 0:02:03]} g6 {[%emt 0:03:08]} 16. Qa1 {[%emt 0:00:37]} (16. Ng5 {is more complex.} Bh6 17. Rg3 Nh5 18. Nxf7 Bxd2 19. Rxd2 Nxg3 20. Bxg6 Kg7 21. Nxd6 hxg6 22. Nxe8+ Rxe8 23. hxg3 Kf7 24. Re2) 16... Bh6 {[%emt 0:01:23]} 17. Ree1 {[%emt 0:00:42]} Nh5 {[%emt 0:02:37]} 18. Bf1 {[%emt 0:04:05]} Bg7 {[%emt 0:01:31]} 19. g3 {[%emt 0:00:20]} Qb8 {[%emt 0:10:00]} 20. Bh3 {[%emt 0:03:11][%cal Od4d5]} Rcd8 {[%emt 0:00:16]} 21. Re2 {[%emt 0:05:26][%cal Od4d5]} Qa8 {[%emt 0:03:46]} 22. Re3 {[%emt 0:08:35][%cal Od4d5]} f5 {[%emt 0:06:55]} 23. Bg2 {[%emt 0:05:33]} Bh6 {[%emt 0:05:34]} (23... e5 $5 {[%cal Rg7h6]} 24. d5 b5 $15) 24. Rd3 {[%emt 0:01:58]} e5 {[%emt 0:01:22]} (24... Ndf6 $15) 25. dxe5 $11 {[%emt 0:16:33]} Nc5 {[%emt 0:01:41] [#]} (25... Nxe5 $11 26. Nxe5 Bxg2) 26. Rd5 $1 $14 {[%emt 0:01:55]} Bxd5 {[%emt 0:00:48]} 27. cxd5 {[%emt 0:00:15]} dxe5 {[%emt 0:00:20] White now steadily converts the win.} (27... Qxd5 $2 28. Nc4 Qf7 29. Nxd6 $18) (27... Bxd2 $14 28. Nxd2 dxe5) 28. Nxe5 $16 {[%emt 0:00:23][%cal Od5d6] Strongly threatening d6!} Bg7 $2 {[%emt 0:02:06]} (28... Rxd5 29. Bxd5+ Qxd5) 29. b4 {[%emt 0:02:39]} (29. d6 $142 Ne4 30. Nxe4 fxe4 31. Bf1) 29... Bxe5 $2 {[%emt 0:12:11]} (29... Nb7) 30. bxc5 {[%emt 0:00:29]} Bxb2 {[%emt 0:06:40]} 31. Qxb2 {[%emt 0:00:10] Black must now prevent d6.} Rxd5 {[%emt 0:00:35]} (31... Ng7 32. c6 (32. d6 Qb8 $18) 32... Rd6) 32. Qb3 $18 {[%emt 0:00:25][%mdl 64] [#] Pin} Red8 {[%emt 0:00:08]} 33. Nf1 {[%emt 0:00:17][%cal Bd2f1,Bf1e3,Be3d5][%mdl 32]} Nf6 {[%emt 0:03:51]} 34. Ne3 {[%emt 0:00:34][%mdl 64] Pin} Kg7 {[%emt 0:02:58]} 35. Nxd5 {[%emt 0:00:41]} Nxd5 {[%emt 0:12:07]} 36. Rxd5 {[%emt 0:02:36] And now Qc3+ would win.} Rxd5 {[%emt 0:00:48]} 37. Qxd5 {[%emt 0:01:02]} (37. Bxd5 $142 Qd8 38. c6) 37... Qxd5 {[%emt 0:01:31]} 38. Bxd5 {[%emt 0:00:08] Threatening mate with c6.} bxc5 {[%emt 0:00:05][%mdl 4096] Endgame KB-KP} 39. f4 {[%emt 0:00:11]} Kf6 {[%emt 0:02:56]} 40. Kf2 {[%emt 0:00:47] Intending h4 and mate.} Ke7 {[%emt 0:01:30]} 41. Ke3 {[%emt 0:30:11] White mates.} Kd6 {[%emt 0:30:51]} 42. Bg8 {[%emt 0:00:10]} Ke7 {[%emt 0:01:28]} 43. Kd3 {[%emt 0:00:34]} h6 {[%emt 0:00:47]} 44. Kc4 {[%emt 0:00:15]} Kf6 {[%emt 0:00:36]} 45. a4 {[%emt 0:00:27]} g5 {[%emt 0:00:22]} 46. Kxc5 {[%emt 0:00:11]} gxf4 {[%emt 0:00:15]} 47. gxf4 {[%emt 0:00:08]} Kg6 {[%emt 0:00:09]} 48. Be6 {[%emt 0:00:22]} Kh5 {[%emt 0:01:47]} 49. Bxf5 {[%emt 0:00:27]} Kh4 {[%emt 0:00:24]} 50. Kd6 {[%emt 0:00:29]} a5 {[%emt 0:01:21]} 51. Bg6 {[%emt 0:00:13] Weighted Error Value: White=0.20 (precise) /Black=0.88} 1-0

[Event "44th Chess Olympiad Open 2022"]
[Site "Chennai"]
[Date "2022.08.05"]
[Round "7.63"]
[White "Sabure, Bojosi"]
[Black "Jamal, Hamid Harmon Gulamo"]
[Result "1-0"]
[ECO "C00"]
[WhiteElo "1966"]
[BlackElo "1617"]
[Annotator "TA"]
[PlyCount "67"]
[EventDate "2022.07.29"]
[EventType "team-tourn"]
[EventCountry "IND"]
[SourceTitle "playchess.com"]
[Source "ChessBase"]
[SourceQuality "1"]
[WhiteTeam "Botswana"]
[BlackTeam "Mozambique"]
[WhiteTeamCountry "BOT"]
[BlackTeamCountry "MOZ"]
[TimeControl "40/5400+30:1800+30"]

{[%evp 13,67,-29,18,18,70,50,46,33,33,29,93,102,114,77,67,72,108,100,144,138,204,200,1910,1854,1929,566,545,557,547,542,750,734,886,883,848,834,895,889,1150,944,944,926,945,937,1030,1006,1107,1091,2387,1986,29980,29981,29981,29982,29982,29982]} 1. e4 {[%emt 0:00:13]} c5 {[%emt 0:00:05]} 2. b4 {[%emt 0:00:34]} cxb4 {[%emt 0:01:38]} 3. d4 {[%emt 0:00:12]} d5 {[%emt 0:05:05]} 4. e5 {[%emt 0:01:50]} e6 {[%emt 0:00:19]} 5. Nf3 {[%emt 0:00:47]} Nc6 {[%emt 0:01:01][%cal Bb8c6,Bc6a5,Ba5c4,Bc4a3][%mdl 32]} 6. a3 {[%emt 0:00:40]} bxa3 {[%emt 0:04:35]} 7. c3 {[%emt 0:00:54]} f6 {[%emt 0:04:09]} (7... Bd7 {feels stronger.}) 8. Bd3 $11 {[%emt 0:02:42][%mdl 1024] White has compensation. C00: French: Unusual White 2nd moves.} Qc7 {[%emt 0:03:03]} (8... fxe5 $11 9. Nxe5 Nxe5 10. dxe5 g6) 9. Qe2 {[%emt 0:06:23] [#]} Na5 $146 {[%emt 0:03:30]} ({Predecessor:} 9... fxe5 10. dxe5 Nh6 11. Bxh6 gxh6 12. O-O Bg7 13. Re1 O-O 14. Nxa3 a6 15. c4 Rxf3 16. Qxf3 Nxe5 {1-0 (37) Fiori,N-Crotti,L Buenos Aires 2002}) 10. Ra2 {[%emt 0:05:33] White is slightly better.} ({Much worse is} 10. Bxa3 Bxa3 11. Rxa3 Ne7 $11) 10... Nc4 {[%emt 0:04:58]} 11. O-O {[%emt 0:01:20][%cal Rb1a3]} b5 {[%emt 0:01:20]} (11... f5 $11) 12. Nxa3 $16 {[%emt 0:05:55]} Bd7 {[%emt 0:01:54]} 13. exf6 {[%emt 0:04:27]} (13. Re1 {looks sharper.} Ne7 14. exf6 gxf6 15. Nxc4 bxc4 16. Bc2) 13... Nxf6 {[%emt 0:05:08]} 14. Bf5 {[%emt 0:01:28]} Bxa3 {[%emt 0:03:17] White now steadily converts the win.} 15. Bxa3 {[%emt 0:01:28]} Nxa3 {[%emt 0:00:32]} 16. Bxe6 {[%emt 0:00:28]} Kf8 {[%emt 0:06:46] [#]} (16... Kd8 $16 {keeps fighting.}) 17. Bxd7 $1 $18 {[%emt 0:01:06]} ({And not} 17. Rxa3 Re8 $11) 17... Qxc3 $2 {[%emt 0:15:48]} (17... Qxd7 18. Rxa3 a6) 18. Qe6 {[%emt 0:01:12]} Qb4 {[%emt 0:02:50]} 19. Ne5 {[%emt 0:01:29]} (19. Re2 $142 {Threatening mate with Ng5.} Rd8 20. Ne5) 19... Qe7 {[%emt 0:01:03] [#]} 20. Rxa3 $1 {[%emt 0:00:43][%mdl 512]} Qxe6 {[%emt 0:01:14]} 21. Bxe6 {[%emt 0:00:11]} Ke7 {[%emt 0:04:30]} 22. Ra6 {[%emt 0:00:21]} Rhb8 {[%emt 0:06:48]} 23. Nc6+ {[%emt 0:01:17]} Kxe6 {[%emt 0:00:57]} 24. Nxb8+ {[%emt 0:00:11][%mdl 64] Discovered Attack} Kf5 {[%emt 0:02:34]} 25. Nc6 {[%emt 0:00:18]} Ne4 {[%emt 0:02:01]} 26. Rxa7 {[%emt 0:00:21]} Rxa7 {[%emt 0:00:35]} 27. Nxa7 {[%emt 0:00:08]} b4 {[%emt 0:00:10]} 28. Rb1 {[%emt 0:00:12]} g5 {[%emt 0:06:23]} 29. f3 {[%emt 0:00:19]} Nc3 {[%emt 0:00:40]} 30. Rxb4 {[%emt 0:00:15] Black must now prevent Kf2.} Kf4 {[%emt 0:00:35]} 31. Kf2 {[%emt 0:00:26] White wants to mate with Rb3.} Nd1+ {[%emt 0:00:47]} 32. Ke2 {[%emt 0:00:11] White mates.} Nc3+ {[%emt 0:00:09]} 33. Kd2 {[%emt 0:00:14]} Na2 {[%emt 0:01:35]} 34. Rb3 {[%emt 0:00:10] Weighted Error Value: White=0.42/Black=0.38} 1-0

[Event "44th Chess Olympiad Open 2022"]
[Site "Chennai"]
[Date "2022.08.05"]
[Round "7.63"]
[White "Napoleao, Lourenco"]
[Black "Oratile, Kgotlane"]
[Result "1-0"]
[ECO "B27"]
[WhiteElo "1778"]
[BlackElo "2024"]
[Annotator "TA"]
[PlyCount "103"]
[EventDate "2022.07.29"]
[EventType "team-tourn"]
[EventCountry "IND"]
[SourceTitle "playchess.com"]
[Source "ChessBase"]
[SourceQuality "1"]
[WhiteTeam "Mozambique"]
[BlackTeam "Botswana"]
[WhiteTeamCountry "MOZ"]
[BlackTeamCountry "BOT"]
[TimeControl "40/5400+30:1800+30"]

{[%evp 11,103,14,20,22,0,22,18,12,30,29,22,47,27,50,46,35,77,81,131,-3,104,93,97,93,81,70,166,171,216,228,222,217,234,203,210,207,197,213,208,206,220,212,210,204,206,211,241,247,253,151,166,164,172,167,252,252,328,328,392,354,352,335,927,925,907,911,877,789,978,962,1162,800,1020,985,1297,604,543,389,671,677,977,964,938,923,814,771,29973,29974,29994,29995,29995,29996,29996,29997]} 1. e4 {[%emt 0:00:05]} c5 {[%emt 0:00:18]} 2. Nf3 {[%emt 0:00:24]} g6 {[%emt 0:00:11]} 3. d4 {[%emt 0:00:31]} cxd4 {[%emt 0:00:07]} 4. Qxd4 {[%emt 0:00:09]} Nf6 {[%emt 0:00:08]} 5. e5 {[%emt 0:00:27]} Nc6 {[%emt 0:00:14]} 6. Qa4 {[%emt 0:00:16]} Nd5 {[%emt 0:00:09]} 7. Qb3 {[%emt 0:01:01] B27: Sicilian: 2 Nf3, unusual Black 2nd moves.} Nc7 {[%emt 0:00:54] 7...Nc7 is better than 7...Nb6.} 8. Nc3 {[%emt 0:05:05]} Bg7 {[%emt 0:00:07]} 9. Bf4 {[%emt 0:00:09] The position is equal.} Ne6 {[%emt 0:01:23]} 10. Bg3 {[%emt 0:00:08]} Ned4 {[%emt 0:00:35]} 11. Nxd4 {[%emt 0:00:22]} Nxd4 {[%emt 0:00:07]} 12. Qa4 {[%emt 0:00:17]} Nc6 {[%emt 0:00:13]} 13. f4 $36 {[%emt 0:02:08][%mdl 2048] Black is under pressure.} O-O {[%emt 0:00:30]} 14. O-O-O {[%emt 0:00:42] [#]} a6 $146 {[%emt 0:01:44] [#]} ({Black should try} 14... d6) ({Predecessor:} 14... b6 15. h4 a5 16. h5 Ba6 17. hxg6 Bxf1 18. gxf7+ Rxf7 19. Rhxf1 Qc8 20. Ne4 b5 {1-0 (75) Salonen,M (2022)-Tiitta,S (2198) Finland 2019}) 15. h4 {[%emt 0:02:27]} (15. Bh4 $1 $16) 15... b5 {[%emt 0:08:55]} (15... h5 $11) 16. Qe4 {[%emt 0:10:37]} Qa5 {[%emt 0:10:21]} 17. Kb1 {[%emt 0:00:44]} d5 {[%emt 0:12:34]} 18. Nxd5 {[%emt 0:10:03] And now Be1 would win.} Be6 {[%emt 0:06:13]} ({Black should play} 18... Rd8 $1 $14) 19. Be1 $18 {[%emt 0:04:32] Active counter play!} Bxd5 {[%emt 0:08:22]} 20. Rxd5 {[%emt 0:01:09]} ({Don't take} 20. Qxd5 Qc7 21. Bd3 Rfd8) 20... Qb6 {[%emt 0:00:11]} 21. h5 {[%emt 0:02:37]} Rad8 {[%emt 0:00:51]} 22. hxg6 {[%emt 0:02:32]} hxg6 {[%emt 0:00:19]} 23. Bd3 {[%emt 0:01:37]} Rxd5 {[%emt 0:00:56]} 24. Qxd5 {[%emt 0:00:01]} Rd8 {[%emt 0:00:45]} 25. Qe4 {[%emt 0:00:42]} Qc5 {[%emt 0:12:13]} 26. Rf1 {[%emt 0:04:47]} Qd5 {[%emt 0:09:36] Strongly threatening ...Qxe4.} 27. Bh4 {[%emt 0:04:16] Black must now prevent Qxd5.} Qe6 {[%emt 0:01:03]} 28. Bf2 {[%emt 0:04:20] Against Rd4} Na5 {[%emt 0:12:09]} 29. b3 {[%emt 0:07:57] Against Nc4} Nc6 {[%emt 0:00:20]} 30. Bb6 {[%emt 0:04:33]} (30. Be2 $18) 30... Rc8 $16 {[%emt 0:02:52][%cal Rc6e5]} 31. Be3 {[%emt 0:06:45][%cal Bb6e3,Be3d2,Bd2c3][%mdl 32]} f5 {[%emt 0:09:42] [#]} 32. Qf3 {[%emt 0:01:09][%cal Og2g4]} ({Don't play} 32. exf6 Qxf6 33. c3 Rd8 $16) 32... Rd8 {[%emt 0:01:07]} (32... Nb4 {keeps fighting.} 33. Rd1 Nxd3) 33. Bd2 $18 {[%emt 0:03:09]} Nd4 {[%emt 0:00:25]} 34. Qf2 {[%emt 0:06:26]} Rd7 {[%emt 0:01:15]} 35. Bc3 {[%emt 0:00:23]} Nc6 {[%emt 0:00:13]} 36. g4 {[%emt 0:01:54] Hoping for gxf5.} Qd5 $2 {[%emt 0:00:46]} (36... Rxd3 37. cxd3 fxg4) 37. gxf5 {[%emt 0:00:42]} gxf5 {[%emt 0:00:02]} 38. Bxf5 {[%emt 0:00:26] This bishop pair is nice.} e6 {[%emt 0:00:01]} 39. Bd3 {[%emt 0:00:51]} Rf7 {[%emt 0:00:51]} 40. Bg6 {[%emt 0:01:45]} Rd7 {[%emt 0:00:07]} 41. Re1 {[%emt 0:30:46]} Rc7 {[%emt 0:03:01]} 42. Be4 {[%emt 0:00:00]} Qd7 {[%emt 0:00:49]} 43. Bxc6 {[%emt 0:00:00]} (43. f5 $142) 43... Qxc6 {[%emt 0:00:34]} 44. Bb2 {[%emt 0:00:00] Threatens to win with f5.} a5 $2 {[%emt 0:00:22]} (44... Rf7 45. Rg1 a5) 45. f5 {[%emt 0:00:00]} exf5 {[%emt 0:01:48]} 46. Qxf5 {[%emt 0:00:00] e6 is the strong threat.} Rf7 {[%emt 0:00:08]} 47. Qd3 {[%emt 0:00:00]} Rd7 {[%emt 0:01:08]} 48. Qe2 {[%emt 0:00:00] White threatens e6 and mate.} Bh6 {[%emt 0:02:36]} 49. e6 {[%emt 0:00:00] White mates.} Rd2 {[%emt 0:02:53]} 50. Qg4+ {[%emt 0:00:00]} Kf8 {[%emt 0:00:11]} 51. e7+ {[%emt 0:00:00]} Kf7 {[%emt 0:00:41]} 52. e8=Q+ {[%emt 0:00:00] Weighted Error Value: White=0.28 (precise) /Black=0.37} 1-0

[Event "44th Chess Olympiad Open 2022"]
[Site "Chennai"]
[Date "2022.08.05"]
[Round "7.64"]
[White "Myat Thiri Aung Kyaw"]
[Black "Alhejab, Meshal"]
[Result "1-0"]
[ECO "B30"]
[WhiteElo "2120"]
[BlackElo "1732"]
[Annotator "TA"]
[PlyCount "93"]
[EventDate "2022.07.29"]
[EventType "team-tourn"]
[EventCountry "IND"]
[SourceTitle "playchess.com"]
[Source "ChessBase"]
[SourceQuality "1"]
[WhiteTeam "Myanmar"]
[BlackTeam "Kuwait"]
[WhiteTeamCountry "MYA"]
[BlackTeamCountry "KUW"]
[TimeControl "40/5400+30:1800+30"]

{[%evp 9,93,24,37,31,31,33,29,17,25,20,28,0,32,12,48,50,68,79,108,117,151,148,131,135,236,83,74,86,119,122,127,70,115,109,102,112,188,127,110,108,112,116,108,115,104,114,192,191,191,195,205,185,185,191,185,204,195,172,170,133,94,0,136,111,142,135,183,189,383,223,689,408,689,644,665,647,1142,1138,1443,1330,1354,1259,1444,1343,29981,29979]} 1. e4 {[%emt 0:00:44]} c5 {[%emt 0:00:05]} 2. Nf3 {[%emt 0:00:17]} Nc6 {[%emt 0:00:04]} 3. Nc3 {[%emt 0:00:48]} e5 {[%emt 0:00:43]} 4. Bc4 {[%emt 0:00:50]} d6 {[%emt 0:01:25]} 5. a4 {[%emt 0:04:28]} g6 {[%emt 0:01:46]} 6. d3 {[%emt 0:00:35] B30: Sicilian: 2...Nc6 3 Bb5, lines without ...g6.} h6 {[%emt 0:07:41] Against Ng5} 7. Nd5 {[%emt 0:07:35]} Bg7 {[%emt 0:02:10]} 8. Be3 {[%emt 0:01:48] [#] White has an edge.} Nf6 $146 {[%emt 0:00:33]} ({Predecessor:} 8... Nge7 9. c3 Nxd5 10. Bxd5 Ne7 11. Bc4 O-O 12. Nd2 Kh7 13. O-O b6 14. b4 Bb7 15. bxc5 dxc5 {1-0 (41) Gelis,D (2154)-Terrieux,K (2030) Hyeres 2002}) 9. Nxf6+ {[%emt 0:06:09]} Qxf6 {[%emt 0:00:42]} 10. Qd2 {[%emt 0:02:30]} Bg4 {[%emt 0:06:24]} 11. Ng1 {[%emt 0:05:20]} (11. Ng5 $5 {[%cal Rg5f7]}) 11... Rc8 {[%emt 0:11:22]} 12. Ne2 {[%emt 0:11:20]} Qd8 {[%emt 0:04:57]} 13. O-O {[%emt 0:07:15]} Ne7 {[%emt 0:11:11]} 14. f4 {[%emt 0:08:33]} d5 {[%emt 0:04:48]} 15. exd5 {[%emt 0:03:25]} Nxd5 {[%emt 0:07:31]} 16. fxe5 {[%emt 0:02:02]} O-O {[%emt 0:03:25]} (16... Be6 $16 {keeps fighting.} 17. Bxd5 Qxd5) 17. Nc3 $2 {[%emt 0:09:56]} (17. Bxh6 $18 {is the precise move to win. Black must now prevent Rae1.} Bxh6 18. Qxh6 Bxe2 19. Rfe1 (19. Rf2 Bg4 $11)) 17... Nxe3 $16 {[%emt 0:02:10]} 18. Qxe3 {[%emt 0:00:08]} Qd4 {[%emt 0:14:25]} 19. Qxd4 {[%emt 0:04:07] 0x0.001f2622a385dp-1022s more active pieces.} cxd4 {[%emt 0:00:05]} 20. Nd5 {[%emt 0:00:12]} (20. Nb5 $1 $16) 20... Kh8 {[%emt 0:03:02]} 21. Rae1 {[%emt 0:03:42]} Be6 {[%emt 0:03:03]} 22. b3 $36 {[%emt 0:07:34][%cal Bb2b3,Bb3b4][%mdl 2080] White is in control.} a6 {[%emt 0:03:39]} (22... Bxd5 $16 23. Bxd5 Rc7) 23. Nb6 {[%emt 0:03:15]} ({White should play} 23. Nf4 $1 $18 Bxc4 24. bxc4 (24. dxc4 Rfe8 $16)) 23... Rc7 {[%emt 0:05:53]} 24. a5 {[%emt 0:01:35]} Re8 {[%emt 0:01:32]} 25. Bxe6 {[%emt 0:03:33]} Rxe6 {[%emt 0:00:38]} 26. Nc4 {[%emt 0:00:08]} Rce7 {[%emt 0:01:08]} 27. b4 {[%emt 0:00:37]} Kg8 {[%emt 0:00:42]} (27... Bxe5 $16 28. Rxe5 (28. Nxe5 Rxe5 29. Rxe5 Rxe5 $16) 28... Rxe5) 28. Rf4 $1 $18 {[%emt 0:01:21]} Rd7 {[%emt 0:01:37] [#]} 29. Ree4 $1 {[%emt 0:00:28]} Bf8 {[%emt 0:01:21]} 30. Rxd4 {[%emt 0:00:41]} Rxd4 {[%emt 0:00:08]} 31. Rxd4 {[%emt 0:00:02] Hoping for Rd8.} Bxb4 {[%emt 0:00:19][%mdl 4096] Endgame KRB-KRN} 32. Rd8+ {[%emt 0:02:51]} Kg7 {[%emt 0:00:01]} 33. Kf2 {[%emt 0:01:02]} Bc3 {[%emt 0:00:56]} 34. Rd7 {[%emt 0:01:16]} Bxe5 {[%emt 0:00:28]} 35. Rxb7 {[%emt 0:00:13]} (35. h3 $16) 35... Bc3 {[%emt 0:00:47]} (35... Rf6+ $1 $11 36. Ke3 Bf4+ 37. Ke2 Bxh2) 36. Kf3 {[%emt 0:00:14]} Bd4 {[%emt 0:00:42]} 37. Rd7 {[%emt 0:00:28]} Bc3 {[%emt 0:00:50] [#]} (37... Bf6 $16 {was necessary.} 38. h3 Kf8) 38. d4 $1 {[%emt 0:01:16][%cal Bd3d4,Bd4d5,Bd5d6][%mdl 32]} Kf6 $2 {[%emt 0:00:42]} (38... Re1 {might work better.} 39. g3 h5) 39. Ne5 {[%emt 0:00:49]} (39. d5 $142 Re1 40. Rd6+ Ke7 41. Rxa6) 39... Bxa5 $2 {[%emt 0:00:20]} (39... Re7 40. Rd5 Ke6) 40. Rxf7+ {[%emt 0:00:04]} Kg5 {[%emt 0:00:07]} 41. Ke4 {[%emt 0:31:00]} Bc3 {[%emt 0:30:40]} 42. Rf3 {[%emt 0:01:27]} Be1 {[%emt 0:00:41]} 43. d5 {[%emt 0:00:00]} Re8 {[%emt 0:00:00]} 44. d6 {[%emt 0:00:00] d7 is the strong threat.} Ba5 {[%emt 0:00:00]} 45. Kd5 {[%emt 0:00:00]} Rc8 {[%emt 0:00:00]} 46. c4 {[%emt 0:00:00]} Rb8 {[%emt 0:00:00]} 47. Nc6 {[%emt 0:00:00][%csl LRa5,LRb8] Weighted Error Value: White=0.18 (very precise) /Black=0.65} 1-0

[Event "44th Chess Olympiad Open 2022"]
[Site "Chennai"]
[Date "2022.08.05"]
[Round "7.64"]
[White "Sai Han Thiha"]
[Black "Al-Hajiri, Bader"]
[Result "1-0"]
[ECO "E61"]
[WhiteElo "1974"]
[BlackElo "2011"]
[Annotator "TA"]
[PlyCount "49"]
[EventDate "2022.07.29"]
[EventType "team-tourn"]
[EventCountry "IND"]
[SourceTitle "playchess.com"]
[Source "ChessBase"]
[SourceQuality "1"]
[WhiteTeam "Myanmar"]
[BlackTeam "Kuwait"]
[WhiteTeamCountry "MYA"]
[BlackTeamCountry "KUW"]
[TimeControl "40/5400+30:1800+30"]

{[%evp 18,49,44,47,83,62,93,82,167,158,172,137,231,225,216,226,230,212,234,232,225,216,219,214,214,0,340,322,918,887,1256,1225,1220,1062]} 1. d4 {[%emt 0:00:01]} Nf6 {[%emt 0:01:46]} 2. Bf4 {[%emt 0:00:06]} g6 {[%emt 0:01:08]} 3. Nf3 {[%emt 0:00:06]} Bg7 {[%emt 0:00:14]} 4. e3 {[%emt 0:00:06]} O-O {[%emt 0:00:13]} 5. Be2 {[%emt 0:00:06]} d6 {[%emt 0:00:12]} 6. h3 {[%emt 0:00:20]} Nbd7 {[%emt 0:00:37]} 7. O-O {[%emt 0:00:08]} Re8 {[%emt 0:00:42]} 8. c4 {[%emt 0:03:32]} c5 {[%emt 0:02:30]} 9. Nc3 {[%emt 0:08:44][%cal Bb1c3,Bc3b5,Bb5c7][%mdl 32]} cxd4 {[%emt 0:02:01]} 10. exd4 {[%emt 0:00:07]} Qa5 {[%emt 0:00:18] E61: King's Indian: Early deviations for White, including Smyslov System.} 11. a3 {[%emt 0:19:04] [#]} Qf5 $146 {[%emt 0:09:15]} ({Predecessor:} 11... e5 12. b4 Qc7 13. Nb5 Qc6 14. d5 Qb6 15. Be3 Qd8 16. Nxd6 Rf8 17. Rc1 b6 18. c5 bxc5 19. bxc5 {1-0 (36) Rick,N (1490)-Sistig,M (1868) Reinstorf 2022}) 12. Be3 {[%emt 0:17:12] Black must now prevent Nb5.} d5 {[%emt 0:05:33]} (12... Qa5 $16 {was called for.}) 13. Nb5 {[%emt 0:11:08] aiming for Nc7.} Rd8 {[%emt 0:05:12]} 14. c5 {[%emt 0:15:10]} a6 {[%emt 0:09:37]} (14... Nf8 $16 15. Bg5 Ne4 16. Bxe7 Rd7) 15. Nc7 $18 {[%emt 0:01:21]} Rb8 {[%emt 0:01:37]} 16. Nh4 {[%emt 0:00:12]} Qe4 {[%emt 0:00:00]} 17. g4 {[%emt 0:03:51]} Ne5 {[%emt 0:03:53][%cal Rf6g4] Prevents Bd3.} 18. Ng2 $1 {[%emt 0:03:34] Hoping for f3.} ({Inferior is} 18. dxe5 Qxe5 19. Qd4 (19. g5 $2 Ne4 $19) 19... Qxc7 $11) 18... Bxg4 {[%emt 0:17:27]} 19. hxg4 {[%emt 0:03:00]} Nexg4 {[%emt 0:00:12] [#]} 20. Bf4 $1 {[%emt 0:04:19]} Nh5 {[%emt 0:02:40] [#]} 21. Be3 {[%emt 0:01:43]} (21. Bxg4 Nxf4 22. Bf3 Qf5 $17) (21. Bg5 $1 $18 Nxf2 22. Rxf2 Bxd4 23. Bxh5 Bxf2+ 24. Kxf2 gxh5 25. Qxh5 Qd4+ 26. Kf1 Qc4+ 27. Qe2) 21... Nxe3 {[%emt 0:05:21][%mdl 8192]} (21... Nhf6 $1 $11 {and Black stays safe.}) 22. fxe3 {[%emt 0:07:55] And now Bd3 would win. The board is on fire.} e5 $2 {[%emt 0:07:43]} (22... Bh6) 23. Bd3 {[%emt 0:00:00] White is clearly winning.} ({Stronger than} 23. Bxh5 gxh5 24. Qxh5 Rd7 $11) 23... exd4 {[%emt 0:01:26]} 24. Bxe4 {[%emt 0:00:00]} dxe4 {[%emt 0:00:12]} 25. Qb3 {[%emt 0:00:00] Weighted Error Value: White=0.22 (precise) /Black=0.76} 1-0